Cogmind - Beta 9 @@@ ROGUE MODE // 2019.10.24 @ 03:25:03 Player: Halaxes Result: Destroyed by S-10 Pest with Light Assault Rifle Performance ------------- Evolutions (0) 0 Regions Visited (2) 400 Robots Destroyed (17) 85 Value Destroyed (409) 409 Prototype IDs (0) 0 Alien Tech Used (0) 0 Bonus (0) 0 TOTAL SCORE: 894 Bonus ------- None Cogmind --------- Core Integrity 0/250 Matter 165/300 Energy 107/125 System Corruption 0% Temperature Cool (56) Location -10/Mines Parts ------- Power (1) Light Ion Engine Propulsion (2) Aluminum Leg Aluminum Leg Utility (2) Large Storage Unit ECM Suite Weapon (2) Inventory (10) Large Storage Unit Sensor Array Signal Interpreter Light Assault Rifle Light Assault Rifle Peak State ------------ Power Ion Engine Propulsion Light Treads Light Treads Utility Large Storage Unit High-capacity Matter Pod Weapon Light Assault Rifle Light Assault Rifle Inventory Ion Engine Aluminum Leg Aluminum Leg Medium Storage Unit Large Storage Unit [Rating: 7] Favorites ----------- Power Ion Engine Engine Ion Engine Propulsion Light Treads Treads Light Treads Leg Aluminum Leg Utility Large Storage Unit Device ECM Suite Storage Large Storage Unit Weapon Light Assault Rifle Energy Gun Small Laser Ballistic Gun Light Assault Rifle Ballistic Cannon Light Cannon Special Weapon Mining Laser Slashing Weapon Mining Claw Build | -11 -10 -10 ------- Run | Scr Mat Min Slots Evolved . | . . . Power . | . . . Propulsion . | . . . Utility . | . . . Weapon . | . . . Parts Attached 29 | 6 21 2 Power 3 | 1 2 . Engine 3 | 1 2 . Core . | . . . Reactor . | . . . Propulsion 8 | 2 6 . Treads 2 | 2 . . Leg 6 | . 6 . Wheel . | . . . Hover . | . . . Flight . | . . . Utility 5 | 1 4 . Device 2 | . 2 . Storage 3 | 1 2 . Processor . | . . . Hackware . | . . . Protection . | . . . Artifact . | . . . Weapon 13 | 2 9 2 Energy Gun 2 | . 2 . Energy Cannon . | . . . Ballistic Gun 7 | 2 5 . Ballistic Cannon 1 | . 1 . Launcher . | . . . Special Weapon 2 | . . 2 Impact Weapon . | . . . Slashing Weapon 1 | . 1 . Piercing Weapon . | . . . Special Melee Weapon . | . . . Unidentified Prototypes . | . . . Parts Lost 5 | . 3 2 Power . | . . . Propulsion . | . . . Utility . | . . . Weapon 5 | . 3 2 Highest Loss Streak 3 | . 3 2 Average Slot Usage (%) 87 | . 87 85 Engine 8 | . 8 14 Treads 17 | . 17 . Leg 7 | . 7 28 Device 8 | . 8 14 Storage 18 | . 18 14 Energy Gun 1 | . 1 . Ballistic Gun 21 | . 21 7 Ballistic Cannon 2 | . 2 . Naked Turns . | . . . Heaviest Build 27 | 11 27 22 Greatest Support 40 | 40 40 20 Greatest Overweight (x) 7 | . 7 1 Average Overweight (x) . | . . 1 Largest Inventory Capacity 10 | 6 10 10 Average Capacity 9 | 5 9 10 Most Carried 9 | 3 9 5 Average Carried 4 | 1 4 5 Final Capacity 10 | . . 10 Final Carried 5 | . . 5 Class Distribution -------------------- 100% | Mutant Dominant Class ---------------- Mutant | -10/Materials Mutant | -10/Mines Resources | -11 -10 -10 ----------- Run | Scr Mat Min Matter Collected 512 | 206 306 . Remotely . | . . . Salvage Created 467 | . 467 . Parts 39 | . 39 . Haulers Intercepted . | . . . Recyclers Shooed . | . . . Parts Field Recycled . | . . . Retrieved Matter . | . . . Parts Self-Destructed . | . . . Prevented . | . . . Kills | -11 -10 -10 ------- Run | Scr Mat Min Combat Hostiles Destroyed 13 | . 13 . Melee 3 | . 3 . Guns 10 | . 10 . Classes Destroyed 4 | . 4 . Operator 2 | . 2 . Watcher 2 | . 2 . Swarmer 5 | . 5 . Grunt 8 | . 8 . Best Kill Streak 2 | . 2 . Combat Bots Only 2 | . 2 . Max Kills in Single Turn 1 | . 1 . Gunslinging . | . . . Exploded . | . . . Melee 1 | . 1 . Uniques/NPCs Destroyed . | . . . Combat | -11 -10 -10 -------- Run | Scr Mat Min Damage Taken 1037 | . 898 139 Core 254 | . 222 32 Absorbed by Shields . | . . . Core Remaining (%) 100 | 100 . . Volleys Fired 66 | . 65 1 Largest 2 | . 2 2 Hottest 200 | . 60 200 Shots Fired 113 | . 111 2 Gun 94 | . 94 . Cannon 17 | . 17 . Launcher . | . . . Special 2 | . . 2 Kinetic 102 | . 102 . Thermal 11 | . 9 2 Explosive . | . . . Electromagnetic . | . . . Robot Hit Streak 18 | . 18 . Robot Miss Streak 3 | . 3 . Penetration Max . | . . . Secondary Targets . | . . . Shots Hit Robots 83 | . 83 . Core Hits 33 | . 33 . Critical Hits . | . . . Critical Kills . | . . . Critical Parts Destroyed . | . . . Melee Attacks 9 | . 9 . Impact . | . . . Slashing 9 | . 9 . Piercing . | . . . Sneak Attacks . | . . . Combat Hostiles . | . . . Follow-up Attacks . | . . . Damage Inflicted 1011 | . 1011 . Guns 635 | . 635 . Cannons 122 | . 122 . Explosions 79 | . 79 . Melee 164 | . 164 . Ramming 11 | . 11 . Kinetic 700 | . 700 . Thermal 136 | . 136 . Explosive . | . . . Electromagnetic . | . . . Impact . | . . . Slashing 164 | . 164 . Piercing . | . . . Highest Corruption . | . . . Average Corruption . | . . . Corruption Purged . | . . . Overload Shots . | . . . Overflow Damage 89 | . 89 . Projectiles . | . . . Explosions 89 | . 89 . Melee . | . . . Knockbacks 5 | . 5 . Impact . | . . . Kinetic 4 | . 4 . Secondary 1 | . 1 . Self-Inflicted Damage 111 | . 111 . Shots 1 | . 1 . Rammed 3 | . 3 . Targets Rammed 6 | . 6 . Kicked 3 | . 3 . Crushed . | . . . Highest Temperature 56 | . 20 56 Average Temperature 12 | . 6 32 Received Heat Transfer 270 | . 270 . Siege Activations . | . . . Robots Corrupted . | . . . Combat Hostiles . | . . . Parts Fried . | . . . Impact Corruptions . | . . . Robots Melted . | . . . Combat Hostiles . | . . . Parts Melted . | . . . Heat Transferred 175 | . 175 . Parts Sabotaged . | . . . Parts Stolen . | . . . Parts Stripped . | . . . Power Chain Reactions . | . . . Missiles Intercepted . | . . . Alert | -11 -10 -10 ------- Run | Scr Mat Min Peak Influence 188 | . 188 73 Average Influence 52 | . 55 69 Maximum Alert Level . | . . . Low Security (%) 100 | . . . Level 1 . | . . . Level 2 . | . . . Level 3 . | . . . Level 4 . | . . . Level 5 . | . . . High Security . | . . . Max Security . | . . . Squads Dispatched 4 | . 4 . Investigation 1 | . 1 . Extermination . | . . . Reinforcement 3 | . 3 . Assault . | . . . Garrison . | . . . Intercept . | . . . Construction Impeded . | . . . Haulers Reinforced . | . . . Stealth | -11 -10 -10 --------- Run | Scr Mat Min Distress Signals 1 | . 1 . Communications Jammed . | . . . Distress Signals . | . . . Times Spotted 32 | . 29 3 Peak Tracking Total 4 | . 4 3 Tactical Retreats 2 | . 2 . Traps | -11 -10 -10 ------- Run | Scr Mat Min Traps Triggered 3 | . 3 . Indirectly . | . . . Trap Hack Attempts . | . . . Triggered . | . . . Disarmed . | . . . Reprogrammed . | . . . Reused . | . . . Traps Extracted . | . . . Installed . | . . . Triggered . | . . . Machines | -11 -10 -10 ---------- Run | Scr Mat Min Machines Disabled 1 | . 1 . Max in Single Turn 1 | . 1 . Machines Sabotaged . | . . . Garrisons Compromised . | . . . Overloaded Fab Kills . | . . . Fab Network Shutdowns . | . . . Hacking | -11 -10 -10 --------- Run | Scr Mat Min Machines Accessed 4 | . 4 . Terminals 3 | . 3 . Fabricators . | . . . Repair Stations . | . . . Recycling Units 1 | . 1 . Scanalyzers . | . . . Garrison Access . | . . . Total Hacks 13 | . 13 . Successful 10 | . 10 . Failed 3 | . 3 . Catastrophic . | . . . Database Lockouts . | . . . Manual . | . . . Terminals 10 | . 10 . Fabricators . | . . . Repair Stations . | . . . Recycling Units 3 | . 3 . Scanalyzers . | . . . Garrison Access . | . . . Terminal Hacks 7 | . 7 . Record 4 | . 4 . Alert Level 2 | . 2 . Dispatch Records 1 | . 1 . Fabricator Hacks . | . . . Repair Station Hacks . | . . . Recycling Unit Hacks 3 | . 3 . Process 1 | . 1 . Report Inventory 1 | . 1 . Retrieve Matter 1 | . 1 . Scanalyzer . | . . . Garrison Access Hacks . | . . . Unauthorized Hacks . | . . . Terminals . | . . . Fabricators . | . . . Repair Stations . | . . . Recycling Units . | . . . Scanalyzers . | . . . Garrison Access . | . . . Data Cores Recovered . | . . . Used . | . . . Hacking Detections 3 | . 3 . Full Trace Events . | . . . Feedback Events . | . . . Feedback Blocked . | . . . Robot Schematics Acquired . | . . . Robots Built . | . . . Matter . | . . . Time . | . . . Total Robot Build Rating . | . . . Part Schematics Acquired . | . . . Parts Built . | . . . Matter . | . . . Time . | . . . Total Part Build Rating . | . . . Parts Repaired . | . . . Time . | . . . Parts Recycled . | . . . Recycled Matter 12 | . 12 . Retrieved Matter 12 | . 12 . Retrieved Components . | . . . Parts Scanalyzed . | . . . Part Schematics Acquired . | . . . Parts Damaged . | . . . Bothacking | -11 -10 -10 ------------ Run | Scr Mat Min Used RIF Installer . | . . . Robots Hacked . | . . . Non-combat . | . . . Combat . | . . . Robot Hacks Applied . | . . . Relay Couplers Released . | . . . Robots Rewired . | . . . Allies Hacked . | . . . Hacks Repelled . | . . . Allies | -11 -10 -10 -------- Run | Scr Mat Min Total Allies . | . . . Largest Group . | . . . Highest-Rated Group . | . . . Highest-Rated Ally . | . . . Total Orders . | . . . Ally Attacks . | . . . Total Damage . | . . . Kills . | . . . Allies Corrupted . | . . . Allies Melted . | . . . Intel | -11 -10 -10 ------- Run | Scr Mat Min Robot Analysis Total . | . . . Derelict Logs Recovered . | . . . Drone Launches . | . . . Drone Recoveries . | . . . Exploration | -11 -10 -10 ------------- Run | Scr Mat Min Turns Passed 2020 | 121 1886 13 Spaces Moved 857 | 71 784 2 Core 58 | 4 54 . Treads 539 | 67 472 . Legs 260 | . 258 2 Wheels . | . . . Hover . | . . . Flight . | . . . Fastest Speed 50 | 50 120 150 Average Speed 162 | 153 163 150 Slowest Speed 400 | 160 400 150 Overloaded Moves . | . . . Propulsion Burnouts . | . . . Robots Hopped . | . . . Cave-ins Triggered . | . . . Exploration Rate (%) 29 | 6 78 3 Regions Visited 2 Branch Regions 1 Pre-discovered Areas . | . . . Known Exits Taken . | . . . Unknown Exits Taken 2 | 1 1 . Scrap Searched . | . . . Spaces Dug . | . . . Terrain Destroyed 22 | . 22 . Melee . | . . . Projectile . | . . . AOE 22 | . 22 . Actions | -11 -10 -10 --------- Run | Scr Mat Min Total 1358 | 80 1273 5 Wait 353 | . 353 . Move 855 | 70 783 2 Hop . | . . . Pick Up 28 | 4 24 . Fast Attach 5 | 5 . . Attach 13 | 1 12 . Detach . | . . . Swap 11 | . 9 2 Drop 12 | . 12 . Fire 66 | . 65 1 Melee 9 | . 9 . Ram . | . . . Kick 6 | . 6 . Crush . | . . . Escape Stasis . | . . . Rewire . | . . . Trap . | . . . Miscellaneous . | . . . Route ------- -11/Scrapyard -10/Materials (discovered 3 exits: [*Mat x2] / [*Min]) -10/Mines History --------- Turn | Location | Event 32 | -11/Scrapyard | Discovered new exit (range 16) 122 | -11/Scrapyard | Entered Materials 310 | -10/Materials | Build established: Mutant 1253 | -10/Materials | Discovered new exit (range 8) 1596 | -10/Materials | Core integrity fell below 50% 1753 | -10/Materials | Core integrity fell below 20% 1759 | -10/Materials | Lost 3 parts (3w) 1849 | -10/Materials | Discovered new exit (range 11) 1902 | -10/Materials | Discovered new exit (range 9) 2008 | -10/Materials | Entered Mines 2021 | -10/Mines | Destroyed by S-10 Pest with Light Assault Rifle Last Messages --------------- >>Alert(Check) Current Alert Level: Low Security 01849_ EXIT=FOUND 01861_ K-01 Serf cleans the Fusion Modulator. 01902_ EXIT=FOUND 01906_ K-01 Serf cleans the Fusion Modulator. 01917_ Acquired Mining Laser. 01946_ Destroyed Datajack. 01969_ O-16 Technician destroyed. 01973_ K-01 Serf collects debris. 01978_ O-16 Technician: "IFF HANDSHAKE FAILED. SECURING TERMINAL." 01983_ K-01 Serf collects debris. 01984_ Acquired Lgt. Ion Engine. 01985_ Acquired 13 matter. 01986_ ALERT: Hostiles spotted, dispatching reinforcements to Terminal M004. 01987_ K-01 Serf collects debris. LOCATION=UNKNOWN GOAL=ESCAPE 02019_ Mining Laser destroyed. Map ----- +----------------------------------------------------+ | ????????????????????????????? | | ????????????????????????????? | | ????????????????????????????? | | ????????????????????????????? | | ????????????????????????????? | | ????????????????????????????? | | ????????????????????????????? | | ????????????????????????????? | | ????????????????????????????? | | ????????????????????????????? | | ????????????????????????????? | | ????????????????????????????? | | ???##???????????????????????? | | ??# ???????????????????????? | | ??# ???????????????????????? | | ??# ???????????????????????? | | ??# #??????????????????????? | | ??# ??????????????????????? | | ??# #??????????????????????? | | ??# #??????????????????????? | | ??# #??????????????????????? | | ??# $#??????????????????????? | | ?## ####???????????????????? | | ?#ss #???????????????????? | | ?#s #???????????????????? | | ?# @ #???????????????????? | | ?# #???????????????????? | | ?# #???????????????????? | | ?# #???????????????????? | | ?# #???????????????????? | | ?########???????????????????? | | ????????????????????????????? | | ????????????????????????????? | | ????????????????????????????? | | ????????????????????????????? | | ????????????????????????????? | | ????????????????????????????? | | ????????????????????????????? | | ????????????????????????????? | | ????????????????????????????? | | ????????????????????????????? | | ????????????????????????????? | | ????????????????????????????? | | ????????????????????????????? | | ????????????????????????????? | | ????????????????????????????? | | ????????????????????????????? | | ????????????????????????????? | | ????????????????????????????? | | ????????????????????????????? | +----------------------------------------------------+ Best States ------------- Heat Dissipation 25 Energy Generation 10 Energy Capacity 250 Matter Stores 327 Matter Capacity 500 Sight Range 16 Robot Scan Range 10 Terrain Scan Density 10 ECM Strength 1 Evasion (%) 40 Recoil Reduction 2 Item Schematics ----------------- None Robot Schematics ------------------ None Fabricated ------------ Nothing Alien Tech Used ----------------- None Achievements -------------- None Challenges ------------ None Game ------ Seed CoreCompositeTorch Manual? 0 Play Time 00:18:58 Cumulative 3.5 hours Start 2019.10.24 @ 03:05:19 End 2019.10.24 @ 03:25:03 Sessions 1 Manual Loads 0 Difficulty Rogue Special Mode None Game No. 5 Rogue 5 Adventurer 0 Explorer 0 Win Type - Total 0 Types 0/0/0/0/0/0/0 Lore% 3 Gallery% 7 Achievement% 6 Wizard Run 0 Options --------- ASCII 0 Keyboard 0 Movement Arrows Keybinds 0 Fullscreen 1 Font 18/SmallcapsGlow Map View 76x50 Tactical HUD 1 Map Filters NONE Filters NONE Steam 1 RUN: ca6b92c3-f5ae-410e-8c72-f386a45f2107